Workbook

Sheet Sheet1
E1: OFITE Viscometer Calibration Report
E2: Oil Calibration Per API Recommended Practices; 13B-1 Annex I.5, 13B-2 Annex J.5, 10B-2 Annex B.3.6 and Specification 13A Section 5.2.6
E3: Order Number: | H3: New | O3: Condition Found: | R3: New
E4: Serial # / Local I.D. #: | H4: 5389060000007 | O4: Condition Left: | R4: =IF(AND(E30="Pass",H30="Pass",K30="Pass",N30="Pass",Q30="Pass",T30="Pass",V45="Pass",V46="Pass",V47="Pass"),"In Calibration","Out of Calibration") -> In Calibration
E5: Calibration Date: | H5: 2025-06-06 | O5: Repairs Required: | R5: No
E6: *Recommended Due Date: | H6: =IF(H5="","",H5+365) -> 2026-06-06 | O6: As Found Required: | R6: No
E7: Certificate Number: | H7: =_xlfn.VALUETOTEXT(H4)&_xlfn.VALUETOTEXT(H5) -> 538906000000745814 | O7: Bob: | R7: B1
E8: Part Number: | H8: 130-76-1-C | O8: Spring: | R8: F1
E9: Model: | H9: =IF(ISNA(VLOOKUP(H8,Sheet4!A:B,2,0)),"",VLOOKUP(H8,Sheet4!A:B,2,0)) -> Model 900 Viscometer, Complete, 230 Volt
B10: OFI Testing Equipment, Inc. - 11302 Steeplecrest Dr - Houston, Texas - 77065 - Phone: 832.320.7300 - Web: www.ofite.com
B18: TESTING CONDITION AND CALIBRATION FLUIDS INFORMATION
B19: Ambient Conditions | E19: Lab / Room Temperature | H19: °F | J19: °C | L19: Lab / Room Humidity | S19: 47.3
H20: 73.8 | J20: =IF((H20=""),"",(H20-32)*5/9) -> 23.22222222
B21: Calibration Fluid Activation Date and LOT Number | E21: =Sheet2!G31 -> 100 cP | H21: Activation Date | J21: Calibration Fluid LOT Number | N21: =Sheet2!G32 -> 50 cP | Q21: Activation Date | S21: Calibration Fluid LOT Number
H22: 2025-06-06 | J22: 423912 | Q22: 2025-06-06 | S22: 228501
E23: (Activation Date should not exceed 30 days of the calibration date)
B25: RPM CHECK | E25: ± 1 RPM for speeds <100 RPM | K25: ± 1 % of nominal speed of 100 RPM or Greater
B26: Speed Setting | E26: 3 | H26: 6 | K26: 100 | N26: 200 | Q26: 300 | T26: 600
B27: Actual | E27: 3 | H27: 6 | K27: 100 | N27: 200 | Q27: 300 | T27: 600
B28: Allowed Deviation | E28: 1 | H28: 1 | K28: 1 | N28: 2 | Q28: 3 | T28: 6
B29: Actual Deviation | E29: =MAX(ABS(E26-E27)) -> 0 | H29: =MAX(ABS(H26-H27)) -> 0 | K29: =MAX(ABS(K26-K27)) -> 0 | N29: =MAX(ABS(N26-N27)) -> 0 | Q29: =MAX(ABS(Q26-Q27)) -> 0 | T29: =MAX(ABS(T26-T27)) -> 0
B30: Pass / Fail | E30: =IF(OR(E27=""),"Fail",IF(E28>E29,"Pass","Fail")) -> Pass | H30: =IF(OR(H27=""),"Fail",IF(H28>H29,"Pass","Fail")) -> Pass | K30: =IF(OR(K27=""),"Fail",IF(K28>K29,"Pass","Fail")) -> Pass | N30: =IF(OR(N27=""),"Fail",IF(N28>N29,"Pass","Fail")) -> Pass | Q30: =IF(OR(Q27=""),"Fail",IF(Q28>Q29,"Pass","Fail")) -> Pass | T30: =IF(OR(T27=""),"Fail",IF(T28>T29,"Pass","Fail")) -> Pass
B31: Per API RP 10B-2 Annex B, Equipment Calibration Requirements
B33: AS FOUND MEASUREMENTS
B34: Calibration Fluid Viscosity | C34: Calibration Fluid LOT Number | D34: Calibration Fluid Temperature | E34: Calibrated Viscosity (CV) | F34: 600 RPM Reading | G34: =Sheet2!L19 -> 600 VIS: 600 Reading * 0.5050 | H34: Accepted Deviation | I34: Actual Deviation ** (600 VIS - CV) | J34: 300 RPM Reading | K34: =Sheet2!L20 -> 300 VIS: 300 Reading * 1.0000 | L34: Accepted Deviation | M34: Actual Deviation (300 VIS - CV) | N34: 200 RPM Reading | O34: =Sheet2!L21 -> 200 VIS: 200 Reading / 0.6667 | P34: Accepted Deviation | Q34: Actual Deviation (200 VIS - CV) | R34: 100 RPM Reading | S34: =Sheet2!L22 -> 100 VIS: 100 Reading / 0.3333 | T34: Accepted Deviation | U34: Actual Deviation (100 VIS - CV) | V34: Pass/Fail
B37: =Sheet2!G31 -> 100 cP | C37: =I22 -> 0 | G37: =IF(Sheet2!S7="Yes",IF(Sheet2!$J$15*F37=0,"",Sheet2!$J$15*F37),"-") ->  | H37: =IF(Sheet2!S7="Yes",Sheet2!M16,"-") -> ±1.50 | I37: =IF(Sheet2!S7="Yes",IF(ISERR(G37-E37),"",G37-E37),"-") ->  | K37: =IF(Sheet2!$J$20*Sheet1!J37=0,"",Sheet2!$J$20*Sheet1!J37) ->  | L37: =Sheet2!M16 -> ±1.50 | M37: =IF(ISERR(K37-E37),"",K37-E37) ->  | O37: =IF(Sheet2!$J$16/0.6667*N37=0,"",Sheet2!$J$16/0.6667*N37) ->  | P37: =Sheet2!M16 -> ±1.50 | Q37: =IF(ISERR(O37-E37),"",O37-E37) ->  | S37: =IF(R37/Sheet2!$J$22=0,"",R37/Sheet2!$J$22) ->  | T37: =Sheet2!M16 -> ±1.50 | U37: =IF(ISERR(S37-E37),"",S37-E37) ->  | V37: =Sheet2!S15 -> 
B38: =Sheet2!G32 -> 50 cP | C38: =S22 -> 228501 | G38: =IF(Sheet2!S7="Yes",IF(Sheet2!$J$15*F38=0,"",Sheet2!$J$15*F38),"-") ->  | H38: =IF(Sheet2!S7="Yes",Sheet2!M16,"-") -> ±1.50 | I38: =IF(Sheet2!S7="Yes",IF(ISERR(G38-E38),"",G38-E38),"-") ->  | K38: =IF(Sheet2!$J$20*Sheet1!J38=0,"",Sheet2!$J$20*Sheet1!J38) ->  | L38: =Sheet2!M16 -> ±1.50 | M38: =IF(ISERR(K38-E38),"",K38-E38) ->  | O38: =IF(Sheet2!$J$16/0.6667*N38=0,"",Sheet2!$J$16/0.6667*N38) ->  | P38: =Sheet2!M16 -> ±1.50 | Q38: =IF(ISERR(O38-E38),"",O38-E38) ->  | S38: =IF(R38/Sheet2!$J$22=0,"",R38/Sheet2!$J$22) ->  | T38: =Sheet2!M16 -> ±1.50 | U38: =IF(ISERR(S38-E38),"",S38-E38) ->  | V38: =Sheet2!U15 -> 
S39: As Found Calibration Results | V39: =IF(OR(V37="",V38=""),"",IF(AND(V37 = "Pass",V38 = "Pass"),"Pass","Fail")) -> 
B41: AS LEFT MEASUREMENTS
B42: Calibration Fluid Viscosity | C42: Calibration Fluid LOT Number | D42: Calibration Fluid Temperature | E42: Calibrated Viscosity (CV) | F42: 600 RPM Reading | G42: =Sheet2!L19 -> 600 VIS: 600 Reading * 0.5050 | H42: Accepted Deviation | I42: Actual Deviation ** (600 VIS - CV) | J42: 300 RPM Reading | K42: =Sheet2!L20 -> 300 VIS: 300 Reading * 1.0000 | L42: Accepted Deviation | M42: Actual Deviation (300 VIS - CV) | N42: 200 RPM Reading | O42: =Sheet2!L21 -> 200 VIS: 200 Reading / 0.6667 | P42: Accepted Deviation | Q42: Actual Deviation (200 VIS - CV) | R42: 100 RPM Reading | S42: =Sheet2!L22 -> 100 VIS: 100 Reading / 0.3333 | T42: Accepted Deviation | U42: Actual Deviation (100 VIS - CV) | V42: Pass/Fail
B45: =Sheet2!G31 -> 100 cP | C45: =J22 -> 423912 | D45: 25.3 | E45: 93.9 | F45: 187.9 | G45: =IF(Sheet2!S7="Yes",IF(Sheet2!$J$15*F45=0,"",Sheet2!$J$15*F45),"-") -> 94.89676 | H45: =IF(Sheet2!S7="Yes",Sheet2!M16,"-") -> ±1.50 | I45: =IF(Sheet2!S7="Yes",IF(ISERR(G45-E45),"",G45-E45),"-") -> 0.9967599985 | J45: 93.7 | K45: =IF(Sheet2!$J$20*Sheet1!J45=0,"",Sheet2!$J$20*Sheet1!J45) -> 93.7 | L45: =Sheet2!M16 -> ±1.50 | M45: =IF(ISERR(K45-E45),"",K45-E45) -> -0.2 | N45: 62.8 | O45: =IF(Sheet2!$J$16/0.6667*N45=0,"",Sheet2!$J$16/0.6667*N45) -> 94.19307687 | P45: =Sheet2!M16 -> ±1.50 | Q45: =IF(ISERR(O45-E45),"",O45-E45) -> 0.2930768703 | R45: 31.5 | S45: =IF(R45/Sheet2!$J$22=0,"",R45/Sheet2!$J$22) -> 94.50945095 | T45: =Sheet2!M16 -> ±1.50 | U45: =IF(ISERR(S45-E45),"",S45-E45) -> 0.6094509451 | V45: =Sheet2!S24 -> Pass
B46: =Sheet2!G32 -> 50 cP | C46: =S22 -> 228501 | D46: 25 | E46: 47.9 | F46: 94.3 | G46: =IF(Sheet2!S7="Yes",IF(Sheet2!$J$15*F46=0,"",Sheet2!$J$15*F46),"-") -> 47.62514352 | H46: =IF(Sheet2!S7="Yes",Sheet2!M16,"-") -> ±1.50 | I46: =IF(Sheet2!S7="Yes",IF(ISERR(G46-E46),"",G46-E46),"-") -> -0.2748564776 | J46: 47.8 | K46: =IF(Sheet2!$J$20*Sheet1!J46=0,"",Sheet2!$J$20*Sheet1!J46) -> 47.8 | L46: =Sheet2!M16 -> ±1.50 | M46: =IF(ISERR(K46-E46),"",K46-E46) -> -0.1 | N46: 32 | O46: =IF(Sheet2!$J$16/0.6667*N46=0,"",Sheet2!$J$16/0.6667*N46) -> 47.99647229 | P46: =Sheet2!M16 -> ±1.50 | Q46: =IF(ISERR(O46-E46),"",O46-E46) -> 0.09647229058 | R46: 16 | S46: =IF(R46/Sheet2!$J$22=0,"",R46/Sheet2!$J$22) -> 48.00480048 | T46: =Sheet2!M16 -> ±1.50 | U46: =IF(ISERR(S46-E46),"",S46-E46) -> 0.10480048 | V46: =Sheet2!U24 -> Pass
E47: ** For viscometers not using a B1F1 configuration, the 600 rpm reading is shown, but is not used for determining a pass/fail. | S47: As Left Calibration Results | V47: =IF(OR(V45="",V46=""),"",IF(AND(V45 = "Pass",V46 = "Pass"),"Pass","Fail")) -> Pass
B49: Factory Recommendations*: | D49: Factory recalibration is recommended annually. Uncertainty: 0.5%
D50: Calibration requirements are determined per customer's Quality Management System. | M50: Emad Hanna | Q50: =CalDate -> 2025-06-06
M51: Calibration Technician | Q51: Date
B52: Per API RP 13B-1 and -2, viscometers used for testing drilling fluids should be verified with a traceable calibration fluid at least monthly.
B54: Per API RP 10B-2, viscometers used for testing cements should be verified for accuracy with a traceable calibration fluid at least quarterly. | M54: Reviewed By | Q54: Date
B56: CALIBRATION EQUIPMENT
B57: Fluid Thermometer | E57: 322 | G57: =Sheet3!C2 -> 4000 | I57: =Sheet3!B2 -> 160917170 | L57: =Sheet3!F2 -> C-50081 | P57: =DATEVALUE(Sheet3!D2) -> 2025-05-15 | S57: =DATEVALUE(Sheet3!E2) -> 2026-05-15
E58: I.D. Number | G58: Model Number | I58: Serial Number | L58: Certificate Number | P58: Calibration Date | S58: Calibration Due Date
B59: Tachometer | E59: 155 | G59: =Sheet3!C5 -> 4060 | I59: =Sheet3!B5 -> 122574032 | L59: =Sheet3!F5 -> C-38907 | P59: =DATEVALUE(Sheet3!D5) -> 2024-07-22 | S59: =DATEVALUE(Sheet3!E5) -> 2025-07-22
E60: I.D. Number | G60: Model Number | I60: Serial Number | L60: Certificate Number | P60: Calibration Date | S60: Calibration Due Date
B61: Ambient Monitor / Thermometer | E61: 345 | G61: =Sheet3!C8 -> RH300 | I61: =Sheet3!B8 -> Z395285 | L61: =Sheet3!F8 -> C-40456 | P61: =DATEVALUE(Sheet3!D8) -> 2024-08-20 | S61: =DATEVALUE(Sheet3!E8) -> 2025-08-20
E62: I.D. Number | G62: Model Number | I62: Serial Number | L62: Certificate Number | P62: Calibration Date | S62: Calibration Due Date
B64: AS FOUND REPORT
B65: List all damages which were observed. Describe how this could have affected measurements.
B71: AS LEFT REPORT
B72: List all repairs made to the unit under AS LEFT measurements.
B78: Viscometer Calibration Report 01/27/2025 | C78: This report meets or exceeds the requirements outlined in API RP 13B-1 Recommended Practice for Field Testing Water-based Drilling Fluids and API RP 13B-2 Recommended Practice for Field Testing Oil-based Drilling Fluids for calibration of laboratory devices, using certified master test equipment that is traceable to NIST which is a signatory to the Mutual Recognition Arrangement (MRA) with the International Laboratory Accreditation Cooperation (ILAC). | U78: Page 1 of 1

Sheet Sheet2 (hidden)
A6: bob | B6: k2 | C6: k3 | D6: 100*k2/k3
A7: B1 | B7: 0.01323 | C7: 1.7023 | D7: =100*B7/C7 -> 0.7771838101 | R7: Standard: | S7: =IF(AND(Sheet1!R7="B1",Sheet1!R8="F1"),"Yes","No") -> Yes
A8: B2 | B8: 0.0261 | C8: 0.377 | D8: =100*B8/C8 -> 6.923076923 | F8: 100*k2/k3= | G8: =VLOOKUP(Sheet1!R7,Sheet2!A6:D11,4,FALSE) -> 0.7771838101
A9: B3 | B9: 0.0529 | C9: 0.268 | D9: =100*B9/C9 -> 19.73880597 | F9: k1= | G9: =VLOOKUP(Sheet1!R8,Sheet2!A14:B21,2,FALSE) -> 386 | Q9: as found
A10: B4 | B10: 0.106 | C10: 0.268 | D10: =100*B10/C10 -> 39.55223881 | R10: Fluid 1 | S10: Pass/Fail | T10: Fluid 2 | U10: Pass/Faill
A11: B5 | B11: 0.0154 | C11: 0.8503 | D11: =100*B11/C11 -> 1.811125485 | Q11: 600 rpm | R11: =Sheet1!I37 ->  | S11: =IF(R11="","",IF(S7="Yes",IF(ISERR(IF(ABS(R11)<=$L$16,"Pass","Fail")),"",IF(ABS(R11)<=$L$16,"Pass","Fail")),"Pass")) ->  | T11: =Sheet1!I38 ->  | U11: =IF(T11="","",IF(S7="Yes",IF(ISERR(IF(ABS(T11)<=$L$16,"Pass","Fail")),"",IF(ABS(T11)<=$L$16,"Pass","Fail")),"Pass")) -> 
Q12: 300 rpm | R12: =Sheet1!M37 ->  | S12: =IF(ISERR(IF(ABS(R12)<=$L$16,"Pass","Fail")),"",IF(ABS(R12)<=$L$16,"Pass","Fail")) ->  | T12: =Sheet1!M38 -> 
A13: Spring | B13: k1 | Q13: 200 rpm | R13: =Sheet1!Q37 ->  | T13: =Sheet1!Q38 -> 
A14: F0.2 | B14: 77.2 | Q14: 100 rpm | R14: =Sheet1!U37 ->  | T14: =Sheet1!U38 -> 
A15: F0.5 | B15: 193 | G15: =G8*G9/600 -> 0.4999882512 | J15: =G15*2/1.98 -> 0.5050386376 | S15: =IF(COUNTIF(S11:S14,"Pass")=4,"Pass",IF(COUNTIF(S11:S14,"Fail")>0,"Fail","")) ->  | U15: =IF(COUNTIF(U11:U14,"Pass")=4,"Pass",IF(COUNTIF(U11:U14,"Fail")>0,"Fail","")) -> 
A16: F1 | B16: 386 | G16: =G8*G9/300 -> 0.9999765024 | J16: =G16 -> 0.9999765024 | L16: =ROUND((1.5*G16),2) -> 1.5 | M16: ="±"&TEXT((1.5*G16),"#.00") -> ±1.50
A17: F2 | B17: 772 | G17: =1/(G8*G9/200) -> 0.6666823321 | J17: =G17 -> 0.6666823321
A18: F3 | B18: 1158 | G18: =1/(G8*G9/100) -> 0.3333411661 | J18: =G18 -> 0.3333411661 | Q18: as left
A19: F4 | B19: 1544 | J19: =FIXED(J15,4) -> 0.5050 | L19: ="600 VIS: 600 Reading * "&J19 -> 600 VIS: 600 Reading * 0.5050 | R19: Fluid 1 | S19: Pass/Fail | T19: Fluid 2 | U19: Pass/Faill
A20: F5 | B20: 1930 | G20: 2.330314791 | J20: =FIXED(J16,4) -> 1.0000 | L20: ="300 VIS: 300 Reading * "&J20 -> 300 VIS: 300 Reading * 1.0000 | Q20: 600 rpm | R20: =Sheet1!I45 -> 0.9967599985 | S20: =IF(R20="","",IF(S16="Yes",IF(ISERR(IF(ABS(R20)<=$L$16,"Pass","Fail")),"",IF(ABS(R20)<=$L$16,"Pass","Fail")),"Pass")) -> Pass | T20: =Sheet1!I46 -> -0.2748564776 | U20: =IF(T20="","",IF(S16="Yes",IF(ISERR(IF(ABS(T20)<=$L$16,"Pass","Fail")),"",IF(ABS(T20)<=$L$16,"Pass","Fail")),"Pass")) -> Pass
A21: F10 | B21: 3860 | J21: =FIXED(J17,4) -> 0.6667 | L21: ="200 VIS: 200 Reading / "&J21 -> 200 VIS: 200 Reading / 0.6667 | Q21: 300 rpm | R21: =Sheet1!M45 -> -0.2 | S21: =IF(ISERR(IF(ABS(R21)<=$L$16,"Pass","Fail")),"",IF(ABS(R21)<=$L$16,"Pass","Fail")) -> Pass | T21: =Sheet1!M46 -> -0.1 | U21: =IF(ISERR(IF(ABS(T21)<=$L$16,"Pass","Fail")),"",IF(ABS(T21)<=$L$16,"Pass","Fail")) -> Pass
J22: =FIXED(J18,4) -> 0.3333 | L22: ="100 VIS: 100 Reading / "&J22 -> 100 VIS: 100 Reading / 0.3333 | Q22: 200 rpm | R22: =Sheet1!Q45 -> 0.2930768703 | S22: Pass | T22: =Sheet1!Q46 -> 0.09647229058 | U22: Pass
Q23: 100 rpm | R23: =Sheet1!U45 -> 0.6094509451 | S23: Pass | T23: =Sheet1!U46 -> 0.10480048 | U23: Pass
S24: =IF(COUNTIF(S20:S23,"Pass")=4,"Pass",IF(COUNTIF(S20:S23,"Fail")>0,"Fail","")) -> Pass | U24: =IF(COUNTIF(U20:U23,"Pass")=4,"Pass",IF(COUNTIF(U20:U23,"Fail")>0,"Fail","")) -> Pass
F26: 1000 cP | G26: 500 cP | H26: 200 cP | I26: 100 cP | J26: 50 cP | K26: 20 cP
F27: 500 cP | G27: 200 cP | H27: 100 cP | I27: 50 cP | J27: 20 cP | K27: 10 cP
G31: =IF(J16>7,F26,IF(J16>3.5,G26,IF(J16>1.4,H26,IF(J16>0.7,I26,IF(J16>0.35,J26,K26))))) -> 100 cP
G32: =IF(J16>7,F27,IF(J16>3.5,G27,IF(J16>1.4,H27,IF(J16>0.7,I27,IF(J16>0.35,J27,K27))))) -> 50 cP
A43: OFI Testing Equipment
A48: New
A49: In Calibration
A50: Out of Calibration
A56: In Calibration
A57: Out of Calibration
A61: F°
A62: C°

Sheet Sheet4 (hidden)
A1: 130-00-C | B1: Model 800E Viscometer 115V / 230V
A2: 130-00-C-H | B2: Model 800E Viscometer 115V w/ Heat Cup
A3: 130-00-1-C-H | B3: Model 800E Viscometer 230V w/ Heat Cup
A4: 130-00-C-T | B4: Model 800E Viscometer 115V w/ Tablet
A5: 130-00-1-C-T | B5: Model 800E Viscometer 230V w/ Tablet
A6: 130-10 | B6: Model 800 Viscometer
A7: 130-10-C | B7: Model 800 Viscometer, Complete
A8: 130-10-C-H | B8: Model 800 Viscometer, Hastelloy
A9: 130-10-L | B9: Model 800 Viscometer with Retractable Legs
A10: 130-10-99 | B10: Model 800 Viscometer, Reconditioned
A11: 130-60 | B11: 6-Speed Viscometer
A12: 130-60-99 | B12: 6-Speed Viscometer, Reconditioned | D12: rpm | E12: b1 100 | F12: b1 200 | G12: b5 100 | H12: b5 200
A13: 130-76 | B13: Model 900 Viscometer | D13: 50 | E13: 17.2 | F13: 34.5 | G13: 7.5 | H13: 15.5
A14: 130-76-C | B14: Model 900 Viscometer, Complete, 115 Volt | D14: 100 | E14: 34.2 | F14: 69.1 | G14: 15 | H14: 31
A15: 130-76-1-C | B15: Model 900 Viscometer, Complete, 230 Volt | D15: 150 | E15: 51.3 | F15: 103.9 | G15: 22.4 | H15: 46.5
A16: 130-76-H-C | B16: Model 900 Viscometer, Hastelloy, 115 Volt | D16: 200 | E16: 68.1 | F16: 138.2 | G16: 29.8 | H16: 61.9
A17: 130-76-1-H-C | B17: Model 900 Viscometer, Hastelloy, 230 Volt | D17: 250 | E17: 85.1 | F17: 172.4 | G17: 37.2 | H17: 77.2 | K17: rpm | L17: b1 100 | M17: b5 100 | N17: b5 200
A18: 130-76-K | B18: Model 900 Viscometer with KlikLok Bob, 115 Volt | D18: 300 | E18: 101.9 | F18: 206.5 | G18: 44.6 | H18: 92.5 | K18: 300 | L18: 101.9 | M18: 44.6 | N18: 92.5
A19: 130-76-1-K-C | B19: Model 900 Viscometer with KlikLok Bob, 230 Volt | D19: 350 | E19: 118.5 | F19: 240.6 | G19: 51.7 | H19: 107.8 | K19: 350 | L19: 118.5 | M19: 51.7 | N19: 107.8
A20: 130-76-LSK | B20: Model 900 LS Conversion Kit | D20: 400 | E20: 134.8 | F20: 274.1 | G20: 58.9 | H20: 122.4 | K20: 400 | L20: 134.8 | M20: 58.9 | N20: 122.4
A21: 130-76-99 | B21: Model 900 Viscometer (Reconditioned) | D21: 450 | E21: 151.3 | F21: 305.5 | G21: 66.1 | H21: 136.9 | K21: 450 | L21: 151.3 | M21: 66.1 | N21: 136.9
A22: 130-76-600 | B22: Model 900 Viscometer with No Legs or Base | D22: 500 | E22: 167.8 | F22: 337.8 | G22: 73.2 | H22: 151.5 | K22: 500 | L22: 167.8 | M22: 73.2 | N22: 151.5
A23: Other | B23: Other | D23: 550 | E23: 184.1 | F23: 341.8 | G23: 80.2 | H23: 165.8 | K23: 550 | L23: 184.1 | M23: 80.2 | N23: 165.8
A24: 130-60-12 | B24: 12 Speed Viscometer, 60 Hz | D24: 600 | E24: 200.1 | F24: 341.8 | G24: 87.3 | H24: 180.1 | K24: 600 | L24: 200.1 | M24: 87.3 | N24: 180.1
A25: 130-70-12 | B25: 12 Speed Viscometer, 50 Hz
A26: 900-02807 | B26: Model 900 Viscometer less Heat Cup
A27: 130-10-C-S | B27: Model 800 Viscometer , Complete, Stability Motor
A28: 130-10-S | B28: Model 800 Viscometer, Stability Motor
A29: 130-10-L-S | B29: Model 800 Viscometer,Retractable Legs,Stability Motor
A30: 130-10-B | B30: Model 800, Brookfield Model
A31: 130-11-C | B31: Model 800 Viscometer , Complete, Stability Motor
A43: OFI Testing Equipment
A48: New
A49: In Calibration
A50: Out of Calibration
A56: In Calibration
A57: Out of Calibration
A61: F°
A62: C°

Sheet Sheet3 (hidden)
A1: AliasID | B1: SerialNumber | C1: Model | D1: CalDate | E1: DueDate | F1: CalibrationNumber
A2: 322 | B2: 160917170 | C2: 4000 | D2: 2025-05-15 | E2: 2026-05-15 | F2: C-50081
A4: AliasID | B4: SerialNumber | C4: Model | D4: CalDate | E4: DueDate | F4: CalibrationNumber
A5: 155 | B5: 122574032 | C5: 4060 | D5: 2024-07-22 | E5: 2025-07-22 | F5: C-38907
A7: AliasID | B7: SerialNumber | C7: Model | D7: CalDate | E7: DueDate | F7: CalibrationNumber
A8: 345 | B8: Z395285 | C8: RH300 | D8: 2024-08-20 | E8: 2025-08-20 | F8: C-40456
A13: 130-00-C
A14: 130-00-C-H
A15: 130-00-1-C-H
A16: 130-00-C-T
A17: 130-00-1-C-T
A18: 130-10
A19: 130-10-B
A20: 130-10-S
A21: 130-10-C
A22: 130-10-C-S
A23: 130-10-C-H
A24: 130-10-L
A25: 130-10-L-S
A26: 130-10-99
A27: 130-11-C
A28: 130-60
A29: 130-60-99
A30: 130-60-12
A31: 130-70-12
A32: 130-70-99
A33: 130-76
A34: 130-76-C
A35: 130-76-1-C
A36: 130-76-H-C
A37: 130-76-1-H-C
A38: 130-76-K
A39: 130-76-1-K-C
A40: 130-76-LSK
A41: 130-76-99
A42: 130-76-600
A43: 900-02807
A61: F°
A62: C°
